[Event "*** Titled Tuesday 3|2 Blitz"]
[Site "Chess.com"]
[Date "2014.12.30"]
[Round "7"]
[White "Imre91"]
[Black "KestutisLabeckas"]
[Result "1-0"]
[WhiteElo "2545"]
[BlackElo "2386"]
[TimeControl "180+2"]
[EndTime "12:31:49 PST"]
[Termination "Imre91 won by checkmate"]

1. c4 {[%clk 0:03:00]} 1... c6 {[%clk 0:02:59.9]} 2. d4 {[%clk 0:02:59.4]} 2...
d5 {[%clk 0:03:01.8]} 3. Nf3 {[%clk 0:03:00.9]} 3... Nf6 {[%clk 0:03:02.5]} 4.
Qc2 {[%clk 0:03:02.4]} 4... g6 {[%clk 0:03:03.2]} 5. Bf4 {[%clk 0:02:59.9]} 5...
Bg7 {[%clk 0:03:04.4]} 6. e3 {[%clk 0:03:00.8]} 6... O-O {[%clk 0:03:05.4]} 7.
Bd3 {[%clk 0:03:01.6]} 7... dxc4 {[%clk 0:03:06.5]} 8. Bxc4 {[%clk 0:03:02]}
8... Bf5 {[%clk 0:03:08.1]} 9. Qb3 {[%clk 0:03:02.4]} 9... Qb6 {[%clk
0:03:07.5]} 10. Nc3 {[%clk 0:03:02.3]} 10... Nbd7 {[%clk 0:03:04.2]} 11. h3
{[%clk 0:03:03.2]} 11... Ne4 {[%clk 0:02:58.9]} 12. O-O {[%clk 0:03:00.3]} 12...
Qxb3 {[%clk 0:02:58.8]} 13. Bxb3 {[%clk 0:02:58.1]} 13... Nxc3 {[%clk
0:02:50.9]} 14. bxc3 {[%clk 0:02:58.5]} 14... h6 {[%clk 0:02:38.8]} 15. Rfe1
{[%clk 0:02:57.5]} 15... g5 {[%clk 0:02:39.8]} 16. Bg3 {[%clk 0:02:57.7]} 16...
Be4 {[%clk 0:02:39.9]} 17. Nd2 {[%clk 0:02:58.6]} 17... Bg6 {[%clk 0:02:39.5]}
18. e4 {[%clk 0:02:54.9]} 18... e5 {[%clk 0:02:37.2]} 19. Nf3 {[%clk 0:02:54.2]}
19... exd4 {[%clk 0:02:36.6]} 20. cxd4 {[%clk 0:02:56.1]} 20... Rfe8 {[%clk
0:02:33.8]} 21. e5 {[%clk 0:02:55.9]} 21... Rad8 {[%clk 0:02:34]} 22. Rad1
{[%clk 0:02:55.2]} 22... Nb6 {[%clk 0:02:33.7]} 23. e6 {[%clk 0:02:45.8]} 23...
fxe6 {[%clk 0:02:32.7]} 24. h4 {[%clk 0:02:46.6]} 24... gxh4 {[%clk 0:02:21.4]}
25. Bxh4 {[%clk 0:02:46.1]} 25... Ra8 {[%clk 0:02:08.3]} 26. Ne5 {[%clk
0:02:33]} 26... Bxe5 {[%clk 0:01:42.9]} 27. Rxe5 {[%clk 0:02:32.8]} 27... Nd5
{[%clk 0:01:42.6]} 28. Rde1 {[%clk 0:02:33.9]} 28... Kf7 {[%clk 0:01:41.1]} 29.
f3 {[%clk 0:02:29.8]} 29... a5 {[%clk 0:01:39.6]} 30. a3 {[%clk 0:02:20.3]}
30... a4 {[%clk 0:01:37.8]} 31. Ba2 {[%clk 0:02:21.4]} 31... b5 {[%clk
0:01:38.3]} 32. Rc1 {[%clk 0:02:21.3]} 32... Ra6 {[%clk 0:01:36.7]} 33. Be1
{[%clk 0:02:14.7]} 33... Re7 {[%clk 0:01:29.6]} 34. g3 {[%clk 0:02:14.1]} 34...
Rb6 {[%clk 0:01:30.4]} 35. Kf2 {[%clk 0:02:12.8]} 35... Kf6 {[%clk 0:01:16.1]}
36. Bd2 {[%clk 0:02:12.7]} 36... Kg7 {[%clk 0:01:07.4]} 37. Rh1 {[%clk
0:02:11.5]} 37... h5 {[%clk 0:01:06.5]} 38. Rhe1 {[%clk 0:02:11.6]} 38... Kf7
{[%clk 0:01:06.4]} 39. g4 {[%clk 0:02:05.3]} 39... hxg4 {[%clk 0:01:06.2]} 40.
fxg4 {[%clk 0:02:07.2]} 40... Rb8 {[%clk 0:01:03.7]} 41. Kg3 {[%clk 0:02:07.9]}
41... Bc2 {[%clk 0:00:55.8]} 42. Bg5 {[%clk 0:02:07.2]} 42... Ree8 {[%clk
0:00:54.8]} 43. R1e2 {[%clk 0:02:08.1]} 43... Bb3 {[%clk 0:00:47.2]} 44. Bb1
{[%clk 0:02:05.8]} 44... Rg8 {[%clk 0:00:33.8]} 45. Rf2+ {[%clk 0:02:02]} 45...
Ke8 {[%clk 0:00:33.9]} 46. Rxe6+ {[%clk 0:02:02.1]} 46... Kd7 {[%clk 0:00:34.2]}
47. Re5 {[%clk 0:02:03.1]} 47... Rbe8 {[%clk 0:00:28.4]} 48. Rf7+ {[%clk
0:02:00.3]} 48... Kd6 {[%clk 0:00:28.3]} 49. Bf5 {[%clk 0:01:56.3]} 49... Rxe5
{[%clk 0:00:27.3]} 50. Rd7# {[%clk 0:01:57.1]} 1-0

[Event "*** Titled Tuesday 3|2 Blitz"]
[Site "Chess.com"]
[Date "2014.12.30"]
[Round "7"]
[White "ItalianMachine"]
[Black "AungTZ"]
[Result "1-0"]
[WhiteElo "2164"]
[BlackElo "2001"]
[TimeControl "180+2"]
[EndTime "12:32:15 PST"]
[Termination "ItalianMachine won by resignation"]

1. e4 {[%clk 0:03:00]} 1... c5 {[%clk 0:02:56.9]} 2. Nf3 {[%clk 0:02:57.4]} 2...
Nc6 {[%clk 0:02:58.5]} 3. d3 {[%clk 0:02:53.8]} 3... Nf6 {[%clk 0:02:57.6]} 4.
Nc3 {[%clk 0:02:54.6]} 4... d5 {[%clk 0:02:57.6]} 5. Bg5 {[%clk 0:02:49.4]} 5...
dxe4 {[%clk 0:02:58.1]} 6. dxe4 {[%clk 0:02:47.3]} 6... Qxd1+ {[%clk 0:02:53.7]}
7. Rxd1 {[%clk 0:02:47.1]} 7... Bg4 {[%clk 0:02:50.7]} 8. Nb5 {[%clk 0:02:26.8]}
8... Rc8 {[%clk 0:02:48.2]} 9. Bf4 {[%clk 0:02:27.7]} 9... Bxf3 {[%clk
0:02:46.2]} 10. gxf3 {[%clk 0:02:27.9]} 10... e5 {[%clk 0:02:47.2]} 11. Bg3
{[%clk 0:02:26.3]} 11... a6 {[%clk 0:02:48.8]} 12. Nc3 {[%clk 0:02:24.1]} 12...
Be7 {[%clk 0:02:47.2]} 13. Nd5 {[%clk 0:02:20.4]} 13... Nd4 {[%clk 0:02:46.9]}
14. Bh3 {[%clk 0:01:49.5]} 14... Rc6 {[%clk 0:02:35.3]} 15. c3 {[%clk
0:01:39.2]} 15... Nxf3+ {[%clk 0:02:33.2]} 16. Ke2 {[%clk 0:01:40.7]} 16... Ng5
{[%clk 0:02:11.5]} 17. Nxf6+ {[%clk 0:01:41]} 17... Rxf6 {[%clk 0:02:12.4]} 18.
Bg2 {[%clk 0:01:41.1]} 18... Bd6 {[%clk 0:02:03.9]} 19. Rd5 {[%clk 0:01:40.8]}
19... O-O {[%clk 0:01:57.7]} 20. Rhd1 {[%clk 0:01:27.9]} 20... Bb8 {[%clk
0:01:57]} 21. Rxc5 {[%clk 0:01:22.2]} 21... Ne6 {[%clk 0:01:55.9]} 22. Rcd5
{[%clk 0:01:19.7]} 22... Nf4+ {[%clk 0:01:56.3]} 23. Bxf4 {[%clk 0:01:20]} 23...
exf4 {[%clk 0:01:57.2]} 24. Rd8 {[%clk 0:01:13.6]} 24... f3+ {[%clk 0:01:53.6]}
25. Bxf3 {[%clk 0:01:13.1]} 25... Bxh2 {[%clk 0:01:53.9]} 26. Rxf8+ {[%clk
0:01:11.5]} 26... Kxf8 {[%clk 0:01:54.9]} 27. Rd7 {[%clk 0:01:11.4]} 27... b5
{[%clk 0:01:52.3]} 28. Rb7 {[%clk 0:00:56]} 28... g6 {[%clk 0:01:47.9]} 29. Bg4
{[%clk 0:00:49]} 29... h5 {[%clk 0:01:47.5]} 30. Bc8 {[%clk 0:00:46.8]} 30... h4
{[%clk 0:01:44.7]} 31. Ra7 {[%clk 0:00:44.2]} 31... Bb8 {[%clk 0:01:22.2]} 32.
Rxa6 {[%clk 0:00:35]} 32... Rxa6 {[%clk 0:01:18.9]} 33. Bxa6 {[%clk 0:00:36.5]}
33... b4 {[%clk 0:01:18.7]} 34. cxb4 {[%clk 0:00:31.6]} 34... h3 {[%clk
0:01:19.2]} 35. Kf3 {[%clk 0:00:29.1]} 35... h2 {[%clk 0:01:20.1]} 36. Kg2
{[%clk 0:00:29.3]} 36... Ke7 {[%clk 0:01:22]} 37. Bc4 {[%clk 0:00:28.2]} 37...
f6 {[%clk 0:01:22.2]} 38. a4 {[%clk 0:00:28]} 38... g5 {[%clk 0:01:23.2]} 39. a5
{[%clk 0:00:27.6]} 39... Bc7 {[%clk 0:01:22.5]} 40. a6 {[%clk 0:00:20.9]} 40...
Bb6 {[%clk 0:01:23.3]} 41. f3 {[%clk 0:00:20.9]} 41... Kd6 {[%clk 0:01:23.8]}
42. Kxh2 {[%clk 0:00:21.2]} 42... Ke5 {[%clk 0:01:25.7]} 43. Kg3 {[%clk
0:00:21.8]} 43... Kd4 {[%clk 0:01:26.6]} 44. Bf1 {[%clk 0:00:21.4]} 44... Ke3
{[%clk 0:01:25.2]} 45. Kg4 {[%clk 0:00:21.6]} 45... Kf2 {[%clk 0:01:26]} 46. Bc4
{[%clk 0:00:21.9]} 46... Ke3 {[%clk 0:01:26.9]} 47. Bd5 {[%clk 0:00:21.3]} 47...
Kd4 {[%clk 0:01:23.8]} 48. Kf5 {[%clk 0:00:22.1]} 48... Ke3 {[%clk 0:01:22]} 49.
Kxf6 {[%clk 0:00:23.5]} 49... Kxf3 {[%clk 0:01:22.9]} 50. e5+ {[%clk 0:00:24.8]}
50... Kf4 {[%clk 0:01:24.5]} 51. e6 {[%clk 0:00:25.2]} 51... Bd8+ {[%clk
0:01:26.4]} 52. e7 {[%clk 0:00:25.8]} 52... Bxe7+ {[%clk 0:01:28.3]} 53. Kxe7
{[%clk 0:00:27.3]} 1-0

[Event "*** Titled Tuesday 3|2 Blitz"]
[Site "Chess.com"]
[Date "2014.12.30"]
[Round "7"]
[White "GedoGluperd"]
[Black "oggy1984"]
[Result "1-0"]
[WhiteElo "2303"]
[BlackElo "2139"]
[TimeControl "180+2"]
[EndTime "12:32:41 PST"]
[Termination "GedoGluperd won by resignation"]

1. d4 {[%clk 0:02:59.4]} 1... Nf6 {[%clk 0:02:58.2]} 2. Bg5 {[%clk 0:02:59.5]}
2... d5 {[%clk 0:02:59]} 3. Bxf6 {[%clk 0:02:59.5]} 3... exf6 {[%clk 0:03:00.9]}
4. e3 {[%clk 0:03:00.9]} 4... Be6 {[%clk 0:02:50.6]} 5. Nd2 {[%clk 0:03:01.1]}
5... Bd6 {[%clk 0:02:46.6]} 6. g3 {[%clk 0:03:00.6]} 6... O-O {[%clk 0:02:46.9]}
7. Bg2 {[%clk 0:03:01.9]} 7... Nd7 {[%clk 0:02:47.4]} 8. Ne2 {[%clk 0:03:03.3]}
8... f5 {[%clk 0:02:48]} 9. O-O {[%clk 0:03:04.4]} 9... Nf6 {[%clk 0:02:48.9]}
10. b3 {[%clk 0:03:05.3]} 10... c6 {[%clk 0:02:49.2]} 11. c4 {[%clk 0:03:06.1]}
11... Ne4 {[%clk 0:02:49.8]} 12. c5 {[%clk 0:03:05.5]} 12... Bc7 {[%clk
0:02:50.1]} 13. b4 {[%clk 0:03:06.4]} 13... a6 {[%clk 0:02:37.6]} 14. Nb3 {[%clk
0:03:05.3]} 14... Kh8 {[%clk 0:02:26.3]} 15. a4 {[%clk 0:03:02.4]} 15... Qd7
{[%clk 0:02:20.8]} 16. Qd3 {[%clk 0:02:57.3]} 16... g5 {[%clk 0:02:21.4]} 17. f4
{[%clk 0:02:45.8]} 17... g4 {[%clk 0:02:16.9]} 18. Ra2 {[%clk 0:02:21.9]} 18...
h5 {[%clk 0:02:15.7]} 19. Rfa1 {[%clk 0:02:22.5]} 19... h4 {[%clk 0:02:15.5]}
20. b5 {[%clk 0:02:22.5]} 20... hxg3 {[%clk 0:02:07.5]} 21. hxg3 {[%clk
0:02:22.2]} 21... Kg7 {[%clk 0:02:07.8]} 22. Nd2 {[%clk 0:02:09.1]} 22... Rh8
{[%clk 0:01:55.1]} 23. bxa6 {[%clk 0:02:06.4]} 23... Rxa6 {[%clk 0:01:42.2]} 24.
Rb2 {[%clk 0:02:05.8]} 24... Ra7 {[%clk 0:01:42.8]} 25. Qc2 {[%clk 0:01:54]}
25... Qe8 {[%clk 0:01:38.2]} 26. Rab1 {[%clk 0:01:51.1]} 26... Bc8 {[%clk
0:01:38.7]} 27. Nxe4 {[%clk 0:01:25.8]} 27... fxe4 {[%clk 0:01:39.2]} 28. Kf2
{[%clk 0:01:24.6]} 28... Rh2 {[%clk 0:01:24.4]} 29. Rh1 {[%clk 0:01:23.6]} 29...
Rxh1 {[%clk 0:01:22]} 30. Bxh1 {[%clk 0:01:24.8]} 30... Qh8 {[%clk 0:01:23.3]}
31. Rb1 {[%clk 0:01:25]} 31... f5 {[%clk 0:01:17.7]} 32. Bg2 {[%clk 0:01:26.1]}
32... Qf8 {[%clk 0:01:09.2]} 33. Rh1 {[%clk 0:01:25.8]} 33... Kg6 {[%clk
0:01:07.9]} 34. Qd1 {[%clk 0:01:24.1]} 34... Qg7 {[%clk 0:01:02]} 35. Rh2 {[%clk
0:01:23]} 35... Be6 {[%clk 0:00:52.9]} 36. Qh1 {[%clk 0:01:23.6]} 36... Bg8
{[%clk 0:00:49.6]} 37. Nc3 {[%clk 0:01:10.8]} 37... Ba5 {[%clk 0:00:48.4]} 38.
Rh5 {[%clk 0:01:08]} 38... Kf7 {[%clk 0:00:43.5]} 39. Ne2 {[%clk 0:01:01.6]}
39... Qf6 {[%clk 0:00:33.6]} 40. Rh6 {[%clk 0:00:58.6]} 40... Qg7 {[%clk
0:00:29]} 41. Qh5+ {[%clk 0:00:59.9]} 41... Kf8 {[%clk 0:00:29.9]} 42. Qxf5+
{[%clk 0:00:49.8]} 42... Ke8 {[%clk 0:00:21.3]} 43. Rg6 {[%clk 0:00:40.4]} 43...
Qf7 {[%clk 0:00:19.1]} 44. Qe5+ {[%clk 0:00:41.1]} 1-0

[Event "*** Titled Tuesday 3|2 Blitz"]
[Site "Chess.com"]
[Date "2014.12.30"]
[Round "7"]
[White "vinceyoung15"]
[Black "MikePerelshteyn"]
[Result "0-1"]
[WhiteElo "1986"]
[BlackElo "2122"]
[TimeControl "180+2"]
[EndTime "12:32:47 PST"]
[Termination "MikePerelshteyn won by checkmate"]

1. e4 {[%clk 0:02:34.5]} 1... c6 {[%clk 0:02:58.8]} 2. d4 {[%clk 0:02:35.3]}
2... d5 {[%clk 0:02:59.8]} 3. exd5 {[%clk 0:02:36.9]} 3... cxd5 {[%clk
0:03:01.1]} 4. Bd3 {[%clk 0:02:38]} 4... Nc6 {[%clk 0:03:02]} 5. c3 {[%clk
0:02:39.3]} 5... Nf6 {[%clk 0:03:02.3]} 6. Bf4 {[%clk 0:02:39.9]} 6... g6 {[%clk
0:03:03.2]} 7. Nd2 {[%clk 0:02:37.3]} 7... Bf5 {[%clk 0:03:03.9]} 8. Bxf5 {[%clk
0:02:37.3]} 8... gxf5 {[%clk 0:03:05.8]} 9. Ngf3 {[%clk 0:02:38.8]} 9... Bg7
{[%clk 0:03:05.2]} 10. Ne5 {[%clk 0:02:39.8]} 10... e6 {[%clk 0:03:04.6]} 11.
Ndf3 {[%clk 0:02:40.5]} 11... Ne4 {[%clk 0:03:03.2]} 12. O-O {[%clk 0:02:41.1]}
12... O-O {[%clk 0:03:00.8]} 13. Qc1 {[%clk 0:02:37.6]} 13... Nxe5 {[%clk
0:02:53.8]} 14. Nxe5 {[%clk 0:02:37]} 14... Rc8 {[%clk 0:02:39.2]} 15. Re1
{[%clk 0:02:24]} 15... b5 {[%clk 0:02:38.4]} 16. a3 {[%clk 0:02:23.5]} 16... a5
{[%clk 0:02:39]} 17. Qd1 {[%clk 0:02:19.3]} 17... b4 {[%clk 0:02:37.2]} 18. axb4
{[%clk 0:02:20.1]} 18... axb4 {[%clk 0:02:38.5]} 19. cxb4 {[%clk 0:02:21.2]}
19... Qe7 {[%clk 0:02:07.8]} 20. Qb3 {[%clk 0:02:10.3]} 20... Qh4 {[%clk
0:01:43.8]} 21. Bg3 {[%clk 0:01:49.1]} 21... Nxg3 {[%clk 0:01:42.9]} 22. hxg3
{[%clk 0:01:45]} 22... Qxd4 {[%clk 0:01:42.8]} 23. Rad1 {[%clk 0:01:43.4]} 23...
Qa7 {[%clk 0:01:38]} 24. b5 {[%clk 0:01:39]} 24... Qb7 {[%clk 0:01:27.8]} 25.
Rd4 {[%clk 0:01:23.3]} 25... Rb8 {[%clk 0:01:00.1]} 26. Rb4 {[%clk 0:01:21.8]}
26... Rfc8 {[%clk 0:00:59.4]} 27. Nc6 {[%clk 0:01:18.4]} 27... Rxc6 {[%clk
0:00:51.6]} 28. bxc6 {[%clk 0:01:10.8]} 28... Qxb4 {[%clk 0:00:51.6]} 29. Qe3
{[%clk 0:01:08.5]} 29... Qxb2 {[%clk 0:00:43.2]} 30. c7 {[%clk 0:00:42.7]} 30...
Rc8 {[%clk 0:00:41.8]} 31. Rc1 {[%clk 0:00:37.7]} 31... Qe5 {[%clk 0:00:38.3]}
32. Qb6 {[%clk 0:00:32.5]} 32... Qb2 {[%clk 0:00:13.2]} 33. Qc6 {[%clk
0:00:19.9]} 33... Be5 {[%clk 0:00:12.2]} 34. Rc2 {[%clk 0:00:21.1]} 34... Qb1+
{[%clk 0:00:12.8]} 35. Kh2 {[%clk 0:00:21.4]} 35... Rxc7 {[%clk 0:00:12.4]} 36.
Qe8+ {[%clk 0:00:20.8]} 36... Kg7 {[%clk 0:00:13.6]} 37. Re2 {[%clk 0:00:20.8]}
37... Bf6 {[%clk 0:00:12.6]} 38. Qa8 {[%clk 0:00:15.3]} 38... Rc1 {[%clk
0:00:13.1]} 39. g4 {[%clk 0:00:15.9]} 39... Rh1+ {[%clk 0:00:12.1]} 40. Kg3
{[%clk 0:00:16.6]} 40... Qd3+ {[%clk 0:00:12.8]} 41. Re3 {[%clk 0:00:17]} 41...
Be5+ {[%clk 0:00:12.1]} 42. Kf3 {[%clk 0:00:16.8]} 42... Qd1+ {[%clk 0:00:12.3]}
43. Re2 {[%clk 0:00:17.5]} 43... Re1 {[%clk 0:00:12.6]} 44. gxf5 {[%clk
0:00:16.2]} 44... Qxe2# {[%clk 0:00:13.2]} 0-1

[Event "*** Titled Tuesday 3|2 Blitz"]
[Site "Chess.com"]
[Date "2014.12.30"]
[Round "7"]
[White "LuckyTiger"]
[Black "rhungaski"]
[Result "1-0"]
[WhiteElo "2542"]
[BlackElo "2408"]
[TimeControl "180+2"]
[EndTime "12:32:57 PST"]
[Termination "LuckyTiger won on time"]

1. e4 {[%clk 0:03:00]} 1... d6 {[%clk 0:02:57.3]} 2. d4 {[%clk 0:03:00.6]} 2...
Nf6 {[%clk 0:02:58.3]} 3. Nc3 {[%clk 0:03:02.1]} 3... e5 {[%clk 0:02:59.7]} 4.
Nf3 {[%clk 0:03:00.9]} 4... Nbd7 {[%clk 0:02:59.8]} 5. Bc4 {[%clk 0:03:02.1]}
5... Be7 {[%clk 0:03:01]} 6. O-O {[%clk 0:03:03]} 6... O-O {[%clk 0:03:01.9]} 7.
Re1 {[%clk 0:03:04.1]} 7... c6 {[%clk 0:03:03.1]} 8. a4 {[%clk 0:03:05.5]} 8...
a5 {[%clk 0:03:04.7]} 9. h3 {[%clk 0:03:05.5]} 9... exd4 {[%clk 0:03:06.2]} 10.
Nxd4 {[%clk 0:03:05.6]} 10... Nc5 {[%clk 0:03:07.7]} 11. b3 {[%clk 0:02:31.9]}
11... Be6 {[%clk 0:03:06.6]} 12. Nxe6 {[%clk 0:02:27.5]} 12... fxe6 {[%clk
0:03:08.5]} 13. e5 {[%clk 0:02:23.5]} 13... d5 {[%clk 0:02:44.7]} 14. Bd3 {[%clk
0:01:46.6]} 14... Nfd7 {[%clk 0:02:35.4]} 15. Bf1 {[%clk 0:01:36.5]} 15... Qe8
{[%clk 0:02:22.1]} 16. Qg4 {[%clk 0:01:19.3]} 16... Qf7 {[%clk 0:02:16.3]} 17.
f4 {[%clk 0:01:20.4]} 17... g6 {[%clk 0:02:07.1]} 18. Be3 {[%clk 0:01:12.7]}
18... Qf5 {[%clk 0:02:01.8]} 19. Qxf5 {[%clk 0:01:13.2]} 19... gxf5 {[%clk
0:02:02.7]} 20. g4 {[%clk 0:01:10.4]} 20... fxg4 {[%clk 0:01:49]} 21. hxg4
{[%clk 0:01:12.3]} 21... d4 {[%clk 0:01:49.9]} 22. Bxd4 {[%clk 0:01:10.5]} 22...
Rxf4 {[%clk 0:01:51.3]} 23. Be3 {[%clk 0:00:59.7]} 23... Rxg4+ {[%clk
0:01:49.6]} 24. Kh2 {[%clk 0:00:56.4]} 24... Nxe5 {[%clk 0:01:20.9]} 25. Be2
{[%clk 0:00:57.5]} 25... Rh4+ {[%clk 0:01:15.1]} 26. Kg3 {[%clk 0:00:58.7]}
26... Ng6 {[%clk 0:01:12.1]} 27. Bxc5 {[%clk 0:00:48.2]} 27... Bxc5 {[%clk
0:01:10.1]} 28. Bc4 {[%clk 0:00:46.2]} 28... Bd6+ {[%clk 0:00:50]} 29. Kg2
{[%clk 0:00:46.6]} 29... Rh2+ {[%clk 0:00:47.9]} 30. Kg1 {[%clk 0:00:47.3]}
30... Nh4 {[%clk 0:00:42.4]} 31. Rxe6 {[%clk 0:00:20]} 31... Nf3+ {[%clk
0:00:15]} 32. Kf1 {[%clk 0:00:21.2]} 32... Nd2+ {[%clk 0:00:15]} 33. Kg1 {[%clk
0:00:17.9]} 33... Nxc4 {[%clk 0:00:10.1]} 34. bxc4 {[%clk 0:00:19.3]} 34... Bc7
{[%clk 0:00:07.9]} 35. Re7 {[%clk 0:00:18.2]} 35... Bd6 {[%clk 0:00:08.7]} 36.
Rd7 {[%clk 0:00:18.9]} 36... Be5 {[%clk 0:00:09.4]} 37. Ne4 {[%clk 0:00:13.5]}
37... Kh8 {[%clk 0:00:09.2]} 38. Rad1 {[%clk 0:00:04.3]} 38... Rg8+ {[%clk
0:00:08]} 39. Kf1 {[%clk 0:00:05.9]} 39... Rh4 {[%clk 0:00:04.2]} 40. Nf2 {[%clk
0:00:05.7]} 1-0

[Event "*** Titled Tuesday 3|2 Blitz"]
[Site "Chess.com"]
[Date "2014.12.30"]
[Round "7"]
[White "jlandaw"]
[Black "LADIESGET2KNOWME"]
[Result "0-1"]
[WhiteElo "2320"]
[BlackElo "2238"]
[TimeControl "180+2"]
[EndTime "12:32:58 PST"]
[Termination "LADIESGET2KNOWME won by resignation"]

1. e4 {[%clk 0:03:00]} 1... e6 {[%clk 0:02:59.1]} 2. d4 {[%clk 0:03:00.9]} 2...
d5 {[%clk 0:03:00.8]} 3. e5 {[%clk 0:03:02.6]} 3... c5 {[%clk 0:02:58.5]} 4. c3
{[%clk 0:03:04.1]} 4... Nc6 {[%clk 0:02:59.7]} 5. Nf3 {[%clk 0:03:05.7]} 5...
Nh6 {[%clk 0:02:59.6]} 6. dxc5 {[%clk 0:02:54.8]} 6... Bxc5 {[%clk 0:02:56.3]}
7. Bd3 {[%clk 0:02:56]} 7... f6 {[%clk 0:02:44.6]} 8. Bxh6 {[%clk 0:01:59.2]}
8... gxh6 {[%clk 0:02:44.7]} 9. Nd4 {[%clk 0:02:00.7]} 9... Nxe5 {[%clk
0:02:31.6]} 10. Qh5+ {[%clk 0:01:53.4]} 10... Ke7 {[%clk 0:02:29.1]} 11. Bc2
{[%clk 0:01:42.1]} 11... Qf8 {[%clk 0:02:09.7]} 12. O-O {[%clk 0:01:37.5]} 12...
Bd7 {[%clk 0:02:08.3]} 13. Re1 {[%clk 0:01:35.6]} 13... Kd6 {[%clk 0:01:58.9]}
14. Nd2 {[%clk 0:01:27.7]} 14... Rg8 {[%clk 0:01:55.7]} 15. Rad1 {[%clk
0:01:17.2]} 15... Qg7 {[%clk 0:01:52.2]} 16. g3 {[%clk 0:00:36.8]} 16... Bxd4
{[%clk 0:01:50.1]} 17. cxd4 {[%clk 0:00:36.6]} 17... Nc6 {[%clk 0:01:44.7]} 18.
Nb3 {[%clk 0:00:31.3]} 18... b6 {[%clk 0:01:43.1]} 19. Re2 {[%clk 0:00:30.3]}
19... Qg4 {[%clk 0:01:39.6]} 20. Qxg4 {[%clk 0:00:31.2]} 20... Rxg4 {[%clk
0:01:40.9]} 21. h3 {[%clk 0:00:33]} 21... Rg7 {[%clk 0:01:38.7]} 22. Kh2 {[%clk
0:00:32.5]} 22... a5 {[%clk 0:01:34]} 23. a3 {[%clk 0:00:31.6]} 23... a4 {[%clk
0:01:30.5]} 24. Nc1 {[%clk 0:00:32.4]} 24... Na5 {[%clk 0:01:08.2]} 25. Nd3
{[%clk 0:00:28.9]} 25... Nc4 {[%clk 0:01:08.7]} 26. Bb1 {[%clk 0:00:26.9]} 26...
Rc8 {[%clk 0:01:03.5]} 27. Rde1 {[%clk 0:00:26.4]} 27... Re7 {[%clk 0:01:03.2]}
28. Nf4 {[%clk 0:00:24.9]} 28... e5 {[%clk 0:00:59.6]} 29. Nh5 {[%clk
0:00:24.4]} 29... Rf8 {[%clk 0:00:58.4]} 30. Bd3 {[%clk 0:00:23.2]} 30... b5
{[%clk 0:00:54.8]} 31. Bxc4 {[%clk 0:00:23.1]} 31... bxc4 {[%clk 0:00:56.3]} 32.
Nxf6 {[%clk 0:00:24.1]} 32... e4 {[%clk 0:00:52.5]} 33. Nh5 {[%clk 0:00:24.6]}
33... Ref7 {[%clk 0:00:50.9]} 34. Nf4 {[%clk 0:00:25.3]} 34... Rb8 {[%clk
0:00:45.3]} 35. Kg2 {[%clk 0:00:22.7]} 35... Rff8 {[%clk 0:00:40.3]} 36. f3
{[%clk 0:00:15.5]} 36... exf3+ {[%clk 0:00:39.5]} 37. Kxf3 {[%clk 0:00:17.4]}
37... Rb3+ {[%clk 0:00:40.4]} 38. Kg2 {[%clk 0:00:18.3]} 38... Rfb8 {[%clk
0:00:40.4]} 39. Re5 {[%clk 0:00:16.7]} 39... Rxb2+ {[%clk 0:00:41.1]} 40. Kh1
{[%clk 0:00:18.3]} 40... R8b5 {[%clk 0:00:32.6]} 41. Rh5 {[%clk 0:00:17.4]}
41... c3 {[%clk 0:00:28.4]} 42. Rxh6+ {[%clk 0:00:18.4]} 42... Kc7 {[%clk
0:00:29.3]} 43. Rxh7 {[%clk 0:00:13]} 43... Rb1 {[%clk 0:00:28.6]} 44. Nxd5+
{[%clk 0:00:10.9]} 44... Kd6 {[%clk 0:00:24.1]} 45. Rxb1 {[%clk 0:00:07.4]}
45... Rxb1+ {[%clk 0:00:24.9]} 46. Kg2 {[%clk 0:00:09.1]} 46... Bc6 {[%clk
0:00:24.2]} 0-1